[Event "52nd Iran-ch Men Final 2019"]
[Site "Bushehr"]
[Date "2019.02.02"]
[Round "10"]
[White "Idani, Pouya"]
[Black "Moradi, Amirmasoud"]
[Result "*"]
[ECO "A05"]
[WhiteElo "2611"]
[BlackElo "2321"]
[Annotator "RC"]
[PlyCount "61"]
[EventDate "2019.01.24"]
[EventType "tourn"]
[EventCountry "IRI"]
[SourceTitle "playchess.com"]
[Source "ChessBase"]
[SourceQuality "1"]
[TimeControl "40/5400+30:1800+30"]

1. Nf3 Nf6 2. c4 e6 3. g3 c5 4. Bg2 Nc6 5. O-O Be7 6. d4 cxd4 7. Nxd4 d5 8. Nc3 O-O 9. cxd5 exd5 10. Be3 Bg4 {[%emt 0:36:35]} 11. h3 {[%emt 0:28:16]} Be6 {[%emt 0:00:26]} 12. Qa4 {[%emt 0:02:50]} Qd7 {[%emt 0:37:19]} 13. Nxe6 {[%emt 0:00:30]} fxe6 {[%emt 0:00:30]} 14. Rad1 {[%emt 0:00:30]} a6 {[%emt 0:00:30]} 15. Bb6 {[%emt 0:00:30]} Ne5 {[%emt 0:00:30]} 16. Qb3 {[%emt 0:00:30]} Qc6 {[%emt 0:00:30]} 17. Bd4 {[%emt 0:00:30]} Ned7 {[%emt 0:00:30]} 18. Rc1 {[%emt 0:00:30]} Nc5 {[%emt 0:00:30]} 19. Qd1 {[%emt 0:00:30]} Qd7 {[%emt 0:00:30]} 20. Bxf6 {[%emt 0:00:30]} Bxf6 {[%emt 0:00:30]} 21. Nxd5 {[%emt 0:00:30]} exd5 {[%emt 0:00:30]} 22. Qxd5+ {[%emt 0:00:30]} Qxd5 {[%emt 0:00:30]} 23. Bxd5+ {[%emt 0:00:30]} Ne6 {[%emt 0:00:30]} 24. Bxe6+ {[%emt 0:00:30]} Kh8 {[%emt 0:00:30]} 25. Bd5 {[%emt 0:00:30]} Rae8 {[%emt 0:00:30]} 26. Rc2 {[%emt 0:00:30]} Re7 {[%emt 0:00:30]} 27. h4 {[%emt 0:00:30]} g6 {[%emt 0:00:30]} 28. Kg2 {[%emt 0:00:30]} a5 {[%emt 0:16:21]} 29. b3 {[%emt 0:26:27]} Rd8 {[%emt 0:01:46]} 30. e4 {[%emt 0:00:33]} b6 {[%emt 0:00:15]} 31. Rfc1 {[%emt 0:02:15]} *

[Event "52nd Iran-ch Men Final 2019"]
[Site "Bushehr"]
[Date "2019.02.02"]
[Round "10"]
[White "Darini, Pouria"]
[Black "Ghaem Maghami, Ehsan"]
[Result "1/2-1/2"]
[ECO "B12"]
[WhiteElo "2475"]
[BlackElo "2533"]
[Annotator "RC"]
[PlyCount "83"]
[EventDate "2019.01.24"]
[EventType "tourn"]
[EventCountry "IRI"]
[SourceTitle "playchess.com"]
[Source "ChessBase"]
[SourceQuality "1"]
[TimeControl "40/5400+30:1800+30"]

1. e4 {[%emt 0:00:00]} c6 {[%emt 0:02:08]} 2. d4 {[%emt 0:00:12]} d5 {[%emt 0:00:10]} 3. e5 {[%emt 0:00:02]} Bf5 {[%emt 0:01:13]} 4. Nf3 {[%emt 0:00:25]} e6 {[%emt 0:00:08]} 5. Be2 {[%emt 0:00:04]} Ne7 {[%emt 0:00:33]} 6. O-O {[%emt 0:00:27]} c5 {[%emt 0:06:03]} 7. c4 {[%emt 0:00:39]} Nbc6 {[%emt 0:00:25]} 8. dxc5 {[%emt 0:00:15]} d4 {[%emt 0:03:29]} 9. Qb3 {[%emt 0:00:13]} Qc8 10. Rd1 Ng6 {[%emt 0:02:00]} 11. Qa4 {[%emt 0:24:52]} Bxc5 {[%emt 0:02:59]} 12. Nxd4 {[%emt 0:01:36]} O-O {[%emt 0:01:24]} 13. Nxc6 {[%emt 0:01:01]} Qxc6 {[%emt 0:06:02]} 14. Qxc6 {[%emt 0:00:08]} bxc6 {[%emt 0:00:03]} 15. Nc3 {[%emt 0:00:12]} Nxe5 {[%emt 0:01:16]} 16. Na4 {[%emt 0:00:08]} Be7 {[%emt 0:01:54]} 17. b3 {[%emt 0:00:09]} Rfc8 {[%emt 0:14:50]} 18. Be3 g5 19. f3 {[%emt 0:36:59]} c5 {[%emt 0:15:02]} 20. Rd2 {[%emt 0:03:52]} Kf8 {[%emt 0:03:16]} 21. g4 {[%emt 0:07:59]} Bg6 {[%emt 0:00:26]} 22. h4 {[%emt 0:00:20]} f6 {[%emt 0:03:07]} 23. hxg5 {[%emt 0:01:12]} fxg5 {[%emt 0:01:21]} 24. f4 {[%emt 0:00:11]} gxf4 {[%emt 0:04:31]} 25. Bxf4 {[%emt 0:00:10]} Bf6 {[%emt 0:03:04]} 26. Re1 {[%emt 0:09:35]} Kf7 {[%emt 0:06:48]} 27. g5 {[%emt 0:10:15]} Bg7 {[%emt 0:00:48]} 28. Bxe5 {[%emt 0:01:13]} Bxe5 {[%emt 0:00:16]} 29. Bg4 {[%emt 0:00:08]} Bd4+ {[%emt 0:03:04]} 30. Rxd4 {[%emt 0:00:01]} cxd4 {[%emt 0:00:07]} 31. Bxe6+ {[%emt 0:00:02]} Kf8 {[%emt 0:00:13]} 32. Bxc8 {[%emt 0:00:01]} Rxc8 {[%emt 0:00:09]} 33. Kf2 {[%emt 0:00:24]} Be8 {[%emt 0:03:00]} 34. Nb2 {[%emt 0:00:08]} Rc5 {[%emt 0:00:01]} 35. Re4 {[%emt 0:03:47]} Rf5+ {[%emt 0:00:43]} 36. Ke1 {[%emt 0:00:09]} Rxg5 {[%emt 0:00:27]} 37. Nd3 {[%emt 0:01:07]} Rg1+ {[%emt 0:02:07]} 38. Kf2 {[%emt 0:00:06]} Rd1 {[%emt 0:00:23]} 39. Rf4+ {[%emt 0:00:54]} Ke7 {[%emt 0:01:04]} 40. Re4+ {[%emt 0:00:00]} Kf8 {[%emt 0:00:00]} 41. Rf4+ {[%emt 0:16:46]} Ke7 {[%emt 0:00:57]} 42. Re4+ {[%emt 0:07:23]} 1/2-1/2

[Event "52nd Iran-ch Men Final 2019"]
[Site "Bushehr"]
[Date "2019.02.02"]
[Round "11"]
[White "Khodashenas, Mersad"]
[Black "Darini, Pouria"]
[Result "1/2-1/2"]
[ECO "B54"]
[WhiteElo "2455"]
[BlackElo "2475"]
[Annotator "ChessBase"]
[PlyCount "46"]
[EventDate "2019.01.24"]
[EventType "tourn"]
[EventCountry "IRI"]
[SourceTitle "playchess.com"]
[Source "ChessBase"]
[SourceQuality "1"]
[TimeControl "40/5400+30:1800+30"]

1. e4 {[%emt 0:07:42]} c5 {[%emt 0:00:00]} 2. Nf3 {[%emt 0:02:33]} d6 {[%emt 0:00:21]} 3. d4 {[%emt 0:00:01]} cxd4 {[%emt 0:00:07]} 4. Nxd4 {[%emt 0:00:14]} Nf6 {[%emt 0:00:06]} 5. Bd3 {[%emt 0:00:01]} Nc6 {[%emt 0:01:30]} 6. Nxc6 {[%emt 0:00:54]} bxc6 {[%emt 0:00:02]} 7. O-O {[%emt 0:01:25]} g6 {[%emt 0:00:20]} 8. b3 {[%emt 0:00:00]} Bg7 9. Bb2 O-O {[%emt 0:01:12]} 10. Re1 {[%emt 0:00:33]} a5 {[%emt 0:11:12]} 11. Nc3 {[%emt 0:20:32]} Qc7 {[%emt 0:20:39]} 12. Na4 {[%emt 0:02:20]} Nh5 {[%emt 0:13:09]} 13. Bxg7 {[%emt 0:01:47]} Nxg7 {[%emt 0:01:11]} 14. c4 {[%emt 0:01:32]} c5 {[%emt 0:00:29]} 15. Nc3 {[%emt 0:09:53]} e5 {[%emt 0:04:08]} 16. Bc2 {[%emt 0:08:48]} Qd8 {[%emt 0:09:31]} 17. Qd2 {[%emt 0:00:03]} Ne6 {[%emt 0:00:22]} 18. Nb5 {[%emt 0:02:31]} Ra6 {[%emt 0:07:30]} 19. Rad1 {[%emt 0:03:10]} Qf6 {[%emt 0:00:29]} 20. Re3 {[%emt 0:03:04]} Rd8 {[%emt 0:03:38]} 21. Rf3 {[%emt 0:05:31]} Qe7 {[%emt 0:03:18]} 22. Rg3 {[%emt 0:04:01]} Nf4 {[%emt 0:02:36]} 23. Nc3 {[%emt 0:00:09]} Be6 {[%emt 0:04:40]} 1/2-1/2

[Event "52nd Iran-ch Men Final 2019"]
[Site "Bushehr"]
[Date "2019.02.03"]
[Round "11"]
[White "Gholami Orimi, Mahdi"]
[Black "Firouzja, Alireza"]
[Result "0-1"]
[ECO "A40"]
[WhiteElo "2377"]
[BlackElo "2618"]
[Annotator "ChessBase"]
[PlyCount "74"]
[EventDate "2019.01.24"]
[EventType "tourn"]
[EventCountry "IRI"]
[SourceTitle "playchess.com"]
[Source "ChessBase"]
[SourceQuality "1"]
[TimeControl "40/5400+30:1800+30"]

1. d4 {[%emt 0:00:39]} e6 {[%emt 0:03:04]} 2. Nf3 {[%emt 0:01:59]} Nf6 {[%emt 0:02:19]} 3. g3 {[%emt 0:01:37]} b5 {[%emt 0:02:59]} 4. Bg2 {[%emt 0:01:05]} Bb7 {[%emt 0:04:13]} 5. O-O {[%emt 0:00:17]} c5 {[%emt 0:00:18]} 6. dxc5 {[%emt 0:08:03]} Bxc5 {[%emt 0:00:18]} 7. Nbd2 {[%emt 0:01:10]} O-O {[%emt 0:03:09]} 8. b3 {[%emt 0:04:49]} a5 {[%emt 0:08:46]} 9. c4 {[%emt 0:04:01]} b4 {[%emt 0:04:51]} 10. Bb2 {[%emt 0:01:49]} d6 {[%emt 0:03:29]} 11. Qc2 {[%emt 0:02:39]} Nbd7 {[%emt 0:07:07]} 12. Ng5 {[%emt 0:02:04]} d5 {[%emt 0:09:50]} 13. Rad1 {[%emt 0:21:01]} Qc7 {[%emt 0:06:47]} 14. Qb1 {[%emt 0:03:54]} h6 {[%emt 0:01:57]} 15. Ngf3 {[%emt 0:00:51]} a4 {[%emt 0:06:11]} 16. Rc1 {[%emt 0:07:08]} dxc4 {[%emt 0:00:59]} 17. Rxc4 {[%emt 0:02:05]} Ba6 {[%emt 0:01:31]} 18. Rcc1 {[%emt 0:00:52]} Bxe2 {[%emt 0:01:34]} 19. Rfe1 {[%emt 0:01:19]} Ba6 {[%emt 0:02:22]} 20. Ne4 {[%emt 0:12:37]} Nxe4 {[%emt 0:05:06]} 21. Rxe4 {[%emt 0:03:35]} a3 {[%emt 0:04:22]} 22. Bd4 {[%emt 0:03:38]} Qd6 {[%emt 0:05:12]} 23. Rxc5 {[%emt 0:01:38]} Nxc5 {[%emt 0:02:01]} 24. Rg4 {[%emt 0:00:22]} f6 {[%emt 0:01:06]} 25. Qc1 {[%emt 0:06:46]} Rac8 {[%emt 0:02:38]} 26. Qxh6 {[%emt 0:00:13]} Rc7 {[%emt 0:01:41]} 27. h3 {[%emt 0:01:48]} e5 {[%emt 0:02:35]} 28. Qg6 {[%emt 0:05:21]} Ne6 {[%emt 0:04:27]} 29. Be3 {[%emt 0:00:28]} Bd3 {[%emt 0:01:11]} 30. Qh5 {[%emt 0:00:27]} g5 {[%emt 0:00:23]} 31. Bxg5 {[%emt 0:00:43]} fxg5 {[%emt 0:01:25]} 32. Nxg5 {[%emt 0:00:30]} Ng7 {[%emt 0:00:48]} 33. Qh4 {[%emt 0:00:26]} Rc1+ {[%emt 0:00:48]} 34. Kh2 {[%emt 0:00:01]} Rxf2 {[%emt 0:00:28]} 35. Rxb4 {[%emt 0:01:01]} Rxg2+ {[%emt 0:00:56]} 36. Kxg2 {[%emt 0:00:05]} Qc6+ {[%emt 0:00:13]} 37. Ne4 {[%emt 0:00:50]} Qc2+ {[%emt 0:00:18]} 0-1